[Event "FIDE Women World Rapid 2024"]
[Site "New York"]
[Date "2024.12.27"]
[Round "5.25"]
[White "Divya Deshmukh"]
[Black "Mungunzul, Bat-Erdene"]
[Result "1-0"]
[ECO "D02"]
[WhiteElo "2490"]
[BlackElo "2268"]
[Annotator "ChessBase"]
[PlyCount "109"]
[EventDate "2024.12.14"]
[EventType "swiss"]
[EventCountry "USA"]
[SourceTitle "playchess.com"]
[Source "ChessBase"]
[SourceQuality "1"]
[TimeControl "900+10"]

1. d4 {[%emt 0:00:02]} d5 {[%emt 0:00:50]} 2. Nf3 {[%emt 0:00:02]} Nf6 {[%emt 0:00:04]} 3. g3 {[%emt 0:00:02]} Bf5 {[%emt 0:00:19]} 4. Nh4 {[%emt 0:00:04]} Be4 {[%emt 0:00:14]} 5. f3 {[%emt 0:00:02]} Bg6 {[%emt 0:00:04]} 6. c4 {[%emt 0:00:03]} c6 {[%emt 0:00:15]} 7. Nxg6 {[%emt 0:00:15]} hxg6 {[%emt 0:00:03]} 8. Qb3 {[%emt 0:00:01]} Qb6 {[%emt 0:02:19]} 9. Nc3 {[%emt 0:00:04]} dxc4 {[%emt 0:00:23]} 10. Qxc4 {[%emt 0:00:10]} Nbd7 {[%emt 0:00:02]} 11. Bg2 {[%emt 0:00:54]} e5 {[%emt 0:00:10]} 12. Be3 {[%emt 0:00:08]} exd4 {[%emt 0:00:51]} 13. Bxd4 {[%emt 0:00:10]} Bc5 {[%emt 0:00:07]} 14. Na4 {[%emt 0:03:13]} Qb4+ {[%emt 0:02:27]} 15. Qxb4 {[%emt 0:00:02]} Bxb4+ {[%emt 0:00:01]} 16. Kf2 {[%emt 0:00:01]} Ke7 {[%emt 0:00:01]} 17. h4 {[%emt 0:00:23]} Bd6 {[%emt 0:00:15]} 18. Nc3 {[%emt 0:00:39]} Bc5 {[%emt 0:00:15]} 19. Rhd1 {[%emt 0:00:46]} Rad8 {[%emt 0:00:20]} 20. Bxc5+ {[%emt 0:03:47]} Nxc5 {[%emt 0:00:03]} 21. b4 {[%emt 0:00:01]} Ne6 {[%emt 0:00:15]} 22. a4 {[%emt 0:00:19]} Rxd1 {[%emt 0:00:13]} 23. Rxd1 {[%emt 0:00:03]} Rd8 {[%emt 0:00:01]} 24. Rxd8 {[%emt 0:00:23]} Kxd8 {[%emt 0:00:02]} 25. e4 {[%emt 0:00:31]} Nd4 {[%emt 0:04:32]} 26. Bf1 {[%emt 0:00:24]} Nd7 {[%emt 0:00:32]} 27. f4 {[%emt 0:01:10]} a6 {[%emt 0:00:32]} 28. Bd3 {[%emt 0:00:55]} c5 {[%emt 0:01:50]} 29. b5 {[%emt 0:00:57]} axb5 {[%emt 0:00:29]} 30. axb5 {[%emt 0:00:08]} Nb6 {[%emt 0:00:02]} 31. Ke3 {[%emt 0:00:06]} Ke7 {[%emt 0:00:10]} 32. g4 {[%emt 0:00:11]} Ne6 {[%emt 0:01:01]} 33. e5 {[%emt 0:00:26]} Nc7 {[%emt 0:00:29]} 34. Be4 {[%emt 0:00:14]} Nc4+ {[%emt 0:00:05]} 35. Kd3 {[%emt 0:00:22]} Na3 {[%emt 0:00:26]} 36. b6 {[%emt 0:00:18]} c4+ {[%emt 0:00:40]} 37. Kd2 {[%emt 0:00:31]} Ne6 {[%emt 0:00:17]} 38. Bxb7 {[%emt 0:00:38]} Nxf4 {[%emt 0:00:21]} 39. Bc6 {[%emt 0:01:27]} Kd8 {[%emt 0:00:13]} 40. Ke3 {[%emt 0:00:43]} Ne6 {[%emt 0:00:06]} 41. Ke4 {[%emt 0:00:26]} Kc8 {[%emt 0:00:16]} 42. Kd5 {[%emt 0:00:10]} Nd8 {[%emt 0:00:02]} 43. Kd6 {[%emt 0:00:39]} Nc2 {[%emt 0:00:01]} 44. Bf3 {[%emt 0:00:23]} Nd4 {[%emt 0:00:03]} 45. Bd5 {[%emt 0:00:07]} Nc2 {[%emt 0:00:40]} 46. Bxc4 {[%emt 0:00:04]} Kb7 {[%emt 0:00:03]} 47. Na4 {[%emt 0:00:06]} Ne3 {[%emt 0:00:05]} 48. Be2 {[%emt 0:00:11]} Kb8 {[%emt 0:00:15]} 49. Nc5 {[%emt 0:00:09]} Nb7+ {[%emt 0:00:16]} 50. Nxb7 {[%emt 0:00:08]} Kxb7 {[%emt 0:00:01]} 51. Ke7 {[%emt 0:00:09]} f5 {[%emt 0:00:16]} 52. exf6 {[%emt 0:00:07]} Nd5+ {[%emt 0:00:10]} 53. Kf7 {[%emt 0:00:09]} Nxf6 {[%emt 0:00:02]} 54. Kxg7 {[%emt 0:00:06]} Nd7 {[%emt 0:00:01]} 55. Kxg6 {[%emt 0:00:09]} 1-0

[Event "FIDE Women World Rapid 2024"]
[Site "New York"]
[Date "2024.12.27"]
[Round "5.25"]
[White "Nurgaliyeva, Zarina"]
[Black "Castillo Beitia, Ashley Alexandra"]
[Result "1-0"]
[ECO "B55"]
[WhiteElo "2263"]
[BlackElo "2009"]
[Annotator "ChessBase"]
[PlyCount "103"]
[EventDate "2024.12.14"]
[EventType "swiss"]
[EventCountry "USA"]
[SourceTitle "playchess.com"]
[Source "ChessBase"]
[SourceQuality "1"]
[TimeControl "900+10"]

1. e4 {[%emt 0:00:01]} c5 {[%emt 0:00:01]} 2. Nf3 {[%emt 0:00:02]} d6 {[%emt 0:00:01]} 3. d4 {[%emt 0:00:01]} cxd4 {[%emt 0:00:02]} 4. Nxd4 {[%emt 0:00:01]} Nf6 {[%emt 0:00:01]} 5. Bd3 {[%emt 0:00:03]} g6 {[%emt 0:00:02]} 6. c4 {[%emt 0:00:19]} Bg7 {[%emt 0:00:02]} 7. Nc3 {[%emt 0:00:18]} Nc6 {[%emt 0:00:06]} 8. Nde2 {[%emt 0:00:18]} Ne5 {[%emt 0:00:09]} 9. h3 {[%emt 0:00:42]} O-O {[%emt 0:01:20]} 10. O-O {[%emt 0:00:42]} Be6 {[%emt 0:00:12]} 11. b3 {[%emt 0:00:09]} Nxd3 {[%emt 0:00:18]} 12. Qxd3 {[%emt 0:00:05]} a5 {[%emt 0:00:16]} 13. Be3 {[%emt 0:01:05]} Nd7 {[%emt 0:00:13]} 14. Rad1 {[%emt 0:00:24]} Ne5 {[%emt 0:01:28]} 15. Qc2 {[%emt 0:00:23]} Rc8 {[%emt 0:00:21]} 16. c5 {[%emt 0:02:04]} Qc7 {[%emt 0:03:13]} 17. f4 {[%emt 0:01:48]} Nc6 {[%emt 0:00:54]} 18. cxd6 {[%emt 0:00:23]} exd6 {[%emt 0:00:04]} 19. Nb5 {[%emt 0:01:58]} Qb8 {[%emt 0:00:48]} 20. Qd2 {[%emt 0:01:28]} Nb4 {[%emt 0:01:04]} 21. Nbd4 {[%emt 0:00:46]} d5 {[%emt 0:02:39]} 22. f5 {[%emt 0:00:51]} Bd7 {[%emt 0:00:37]} 23. Bh6 {[%emt 0:01:22]} f6 {[%emt 0:01:29]} 24. Bxg7 {[%emt 0:00:23]} Kxg7 {[%emt 0:00:02]} 25. a3 {[%emt 0:00:01]} Nc6 {[%emt 0:01:13]} 26. exd5 {[%emt 0:00:06]} Nxd4 {[%emt 0:00:08]} 27. Nxd4 {[%emt 0:00:02]} Qe5 {[%emt 0:00:29]} 28. fxg6 {[%emt 0:01:27]} hxg6 {[%emt 0:00:12]} 29. Rde1 {[%emt 0:00:01]} Qd6 {[%emt 0:00:37]} 30. Ne6+ {[%emt 0:00:32]} Bxe6 {[%emt 0:00:03]} 31. Rxe6 {[%emt 0:00:02]} Qxa3 {[%emt 0:00:14]} 32. d6 {[%emt 0:01:21]} Qxb3 {[%emt 0:00:26]} 33. Re7+ {[%emt 0:00:03]} Rf7 {[%emt 0:00:00]} 34. d7 {[%emt 0:00:05]} Rd8 {[%emt 0:00:14]} 35. Rfe1 {[%emt 0:00:10]} Qb4 {[%emt 0:00:38]} 36. Rxf7+ {[%emt 0:00:08]} Kxf7 {[%emt 0:00:01]} 37. Qd5+ {[%emt 0:00:01]} Kg7 {[%emt 0:00:12]} 38. Re8 {[%emt 0:00:11]} Qb6+ {[%emt 0:00:22]} 39. Kh1 {[%emt 0:00:04]} Qc7 {[%emt 0:00:08]} 40. Re7+ {[%emt 0:01:37]} Kh6 {[%emt 0:00:27]} 41. Qd2+ {[%emt 0:00:03]} g5 {[%emt 0:00:02]} 42. h4 {[%emt 0:00:24]} Qf4 {[%emt 0:00:10]} 43. Qd3 {[%emt 0:00:12]} Qc1+ {[%emt 0:00:25]} 44. Kh2 {[%emt 0:00:01]} Qf4+ {[%emt 0:00:03]} 45. g3 {[%emt 0:00:18]} Qf2+ {[%emt 0:00:04]} 46. Kh3 {[%emt 0:00:11]} g4+ {[%emt 0:00:09]} 47. Kxg4 {[%emt 0:00:02]} Rg8+ {[%emt 0:00:08]} 48. Kh3 {[%emt 0:00:01]} f5 {[%emt 0:01:03]} 49. Re6+ {[%emt 0:00:22]} Kh7 {[%emt 0:00:13]} 50. Rf6 {[%emt 0:00:11]} Rg7 {[%emt 0:00:16]} 51. d8=Q {[%emt 0:00:12]} Qg1 {[%emt 0:00:07]} 52. Qxf5+ {[%emt 0:00:02]} 1-0

[Event "FIDE Women World Rapid 2024"]
[Site "New York"]
[Date "2024.12.27"]
[Round "5.26"]
[White "Priyanka Nutakki"]
[Black "Narva, Mai"]
[Result "1-0"]
[ECO "D04"]
[WhiteElo "2296"]
[BlackElo "2413"]
[Annotator "ChessBase"]
[PlyCount "71"]
[EventDate "2024.12.14"]
[EventType "swiss"]
[EventCountry "USA"]
[SourceTitle "playchess.com"]
[Source "ChessBase"]
[SourceQuality "1"]
[TimeControl "900+10"]

1. Nf3 {[%emt 0:00:06]} Nf6 {[%emt 0:00:08]} 2. b3 {[%emt 0:00:03]} g6 {[%emt 0:00:05]} 3. Bb2 {[%emt 0:00:02]} Bg7 {[%emt 0:00:04]} 4. d4 {[%emt 0:00:03]} c5 {[%emt 0:00:11]} 5. e3 {[%emt 0:00:12]} cxd4 {[%emt 0:00:05]} 6. Nxd4 {[%emt 0:00:04]} O-O {[%emt 0:00:18]} 7. Be2 {[%emt 0:00:12]} d5 {[%emt 0:00:27]} 8. O-O {[%emt 0:00:24]} Re8 {[%emt 0:02:22]} 9. c4 {[%emt 0:00:25]} e5 {[%emt 0:00:19]} 10. Nf3 {[%emt 0:00:09]} Nc6 {[%emt 0:00:23]} 11. Nc3 {[%emt 0:02:41]} d4 {[%emt 0:03:08]} 12. exd4 {[%emt 0:00:18]} e4 {[%emt 0:00:07]} 13. Ne1 {[%emt 0:03:17]} Nxd4 {[%emt 0:00:52]} 14. Nc2 {[%emt 0:00:01]} Nxe2+ {[%emt 0:05:08]} 15. Qxe2 {[%emt 0:00:02]} Qa5 {[%emt 0:00:10]} 16. Ne3 {[%emt 0:00:36]} Qg5 {[%emt 0:00:17]} 17. Rfd1 {[%emt 0:01:21]} Be6 {[%emt 0:01:34]} 18. Nb5 {[%emt 0:00:41]} h5 {[%emt 0:00:54]} 19. Nc7 {[%emt 0:00:52]} h4 {[%emt 0:00:03]} 20. Nxa8 {[%emt 0:00:20]} Rxa8 {[%emt 0:00:02]} 21. Rd6 {[%emt 0:00:46]} Re8 {[%emt 0:00:44]} 22. Rad1 {[%emt 0:00:21]} h3 {[%emt 0:00:30]} 23. g3 {[%emt 0:01:22]} Kh7 {[%emt 0:00:44]} 24. Bc1 {[%emt 0:00:22]} Qa5 {[%emt 0:00:13]} 25. a3 {[%emt 0:00:35]} a6 {[%emt 0:00:15]} 26. b4 {[%emt 0:00:05]} Qa4 {[%emt 0:00:02]} 27. Nd5 {[%emt 0:01:49]} Nxd5 {[%emt 0:00:21]} 28. cxd5 {[%emt 0:00:02]} Bd7 {[%emt 0:00:10]} 29. Rb6 {[%emt 0:00:24]} Bb5 {[%emt 0:00:05]} 30. Qg4 {[%emt 0:00:08]} Kg8 {[%emt 0:00:13]} 31. Re1 {[%emt 0:00:14]} Bc3 {[%emt 0:00:12]} 32. Bh6 {[%emt 0:00:52]} Kh7 {[%emt 0:00:11]} 33. Qxh3 {[%emt 0:00:35]} Bd7 {[%emt 0:00:04]} 34. Qh4 {[%emt 0:00:05]} Qc2 {[%emt 0:00:14]} 35. Rc1 {[%emt 0:00:20]} Qb2 {[%emt 0:00:04]} 36. Rxc3 {[%emt 0:00:05]} 1-0

[Event "FIDE Women World Rapid 2024"]
[Site "New York"]
[Date "2024.12.27"]
[Round "5.26"]
[White "Berezovsky, Fiorina"]
[Black "Sevcikova, Lucia"]
[Result "0-1"]
[ECO "A12"]
[WhiteElo "1796"]
[BlackElo "2060"]
[Annotator "NA"]
[PlyCount "151"]
[EventDate "2024.12.14"]
[EventType "swiss"]
[EventCountry "USA"]
[SourceTitle "playchess.com"]
[Source "ChessBase"]
[SourceQuality "1"]
[TimeControl "900+10"]

1. c4 {[%emt 0:00:03]} c6 {[%emt 0:00:01]} 2. Nf3 {[%emt 0:00:05]} d5 {[%emt 0:00:01]} 3. b3 {[%emt 0:00:01]} Nf6 {[%emt 0:00:05]} 4. Bb2 {[%emt 0:00:01]} Bf5 {[%emt 0:00:01]} 5. g3 {[%emt 0:00:03]} e6 {[%emt 0:00:03]} 6. Bg2 {[%emt 0:00:02]} h6 {[%emt 0:00:06]} 7. O-O {[%emt 0:00:04]} Be7 {[%emt 0:00:07]} 8. d3 {[%emt 0:00:02]} O-O {[%emt 0:00:08]} 9. a3 {[%emt 0:00:11]} a5 {[%emt 0:00:05]} 10. cxd5 {[%emt 0:01:11]} exd5 {[%emt 0:00:04]} 11. Nd4 {[%emt 0:00:48]} Bh7 {[%emt 0:00:11]} 12. Nd2 {[%emt 0:00:32]} Re8 {[%emt 0:01:55]} 13. Re1 {[%emt 0:00:19]} Nbd7 {[%emt 0:00:30]} 14. e4 {[%emt 0:00:24]} Bf8 {[%emt 0:01:02]} 15. Nf5 {[%emt 0:01:44]} Bxf5 {[%emt 0:00:41]} 16. exf5 {[%emt 0:00:02]} Nc5 {[%emt 0:01:56]} 17. Qc2 {[%emt 0:00:31]} Nfd7 {[%emt 0:02:11]} 18. Rxe8 {[%emt 0:01:17]} Qxe8 {[%emt 0:00:02]} 19. Nf3 {[%emt 0:00:48]} Qd8 {[%emt 0:01:42]} 20. d4 {[%emt 0:00:44]} Ne4 {[%emt 0:01:40]} 21. Ne5 {[%emt 0:00:38]} Nd6 {[%emt 0:00:46]} 22. Re1 {[%emt 0:00:48]} Nf6 {[%emt 0:00:07]} 23. Bc1 {[%emt 0:00:26]} Qb6 {[%emt 0:00:48]} 24. Qd3 {[%emt 0:00:18]} Nb5 {[%emt 0:00:36]} 25. Be3 {[%emt 0:01:18]} Bxa3 {[%emt 0:00:19]} 26. g4 {[%emt 0:00:03]} Bb4 {[%emt 0:00:43]} 27. Re2 {[%emt 0:00:07]} Nc3 {[%emt 0:00:19]} 28. Rc2 {[%emt 0:00:19]} Nce4 {[%emt 0:00:30]} 29. h4 {[%emt 0:00:09]} Qa6 {[%emt 0:00:48]} 30. Qd1 {[%emt 0:01:19]} Nc3 {[%emt 0:00:13]} 31. Qa1 {[%emt 0:00:08]} Nfe4 {[%emt 0:00:32]} 32. g5 {[%emt 0:00:59]} hxg5 {[%emt 0:00:32]} 33. hxg5 {[%emt 0:00:01]} a4 {[%emt 0:00:14]} 34. Bxe4 {[%emt 0:00:50]} axb3 {[%emt 0:00:29]} 35. Qxa6 {[%emt 0:00:33]} Rxa6 {[%emt 0:00:18]} 36. Rb2 {[%emt 0:00:14]} dxe4 {[%emt 0:00:25]} 37. Rxb3 {[%emt 0:00:12]} Ra1+ {[%emt 0:00:06]} 38. Kg2 {[%emt 0:00:07]} Nd5 {[%emt 0:00:02]} 39. g6 {[%emt 0:00:24]} fxg6 {[%emt 0:00:10]} 40. fxg6 {[%emt 0:00:02]} Ra3 {[%emt 0:00:11]} 41. Rb2 {[%emt 0:00:36]} Ra7 {[%emt 0:00:45]} 42. Kg3 {[%emt 0:00:52]} Bd6 {[%emt 0:00:16]} 43. Kg4 {[%emt 0:00:05]} Bxe5 {[%emt 0:00:12]} 44. dxe5 {[%emt 0:00:01]} Nxe3+ {[%emt 0:00:16]} 45. fxe3 {[%emt 0:00:02]} Kf8 {[%emt 0:00:01]} 46. Kf5 {[%emt 0:00:26]} Ke7 {[%emt 0:00:17]} 47. Rh2 {[%emt 0:00:08]} Ra8 {[%emt 0:00:14]} 48. Rh7 {[%emt 0:00:25]} Rg8 {[%emt 0:00:01]} 49. Rh1 {[%emt 0:00:33]} Rf8+ {[%emt 0:00:17]} 50. Kxe4 {[%emt 0:00:06]} Ke6 {[%emt 0:00:07]} 51. Rd1 {[%emt 0:00:03]} Ra8 {[%emt 0:00:08]} 52. Rd6+ {[%emt 0:00:17]} Ke7 {[%emt 0:00:01]} 53. Kf5 {[%emt 0:00:12]} Rf8+ {[%emt 0:00:10]} 54. Ke4 {[%emt 0:00:08]} Rf1 {[%emt 0:00:06]} 55. Rd2 {[%emt 0:00:36]} Rg1 {[%emt 0:00:28]} 56. Kf5 {[%emt 0:00:04]} Rf1+ {[%emt 0:00:01]} 57. Ke4 {[%emt 0:00:10]} Rh1 {[%emt 0:00:21]} 58. Ra2 {[%emt 0:00:05]} Rh4+ {[%emt 0:00:05]} 59. Kf5 {[%emt 0:00:05]} Rh5+ {[%emt 0:00:01]} 60. Kf4 {[%emt 0:00:03]} Rh4+ {[%emt 0:00:18]} 61. Kg5 {[%emt 0:00:22]} Re4 {[%emt 0:00:02]} 62. Kf5 {[%emt 0:01:12]} Rxe3 {[%emt 0:00:02]} 63. Ra7 {[%emt 0:00:05]} Rb3 {[%emt 0:00:02]} 64. Ra8 {[%emt 0:00:15]} Rf3+ {[%emt 0:00:09]} 65. Kg4 {[%emt 0:00:11]} Rf8 {[%emt 0:00:01]} 66. Ra7 {[%emt 0:00:08]} Rb8 {[%emt 0:00:02]} 67. Kf5 {[%emt 0:00:08]} c5 {[%emt 0:00:03]} 68. e6 {[%emt 0:00:15]} c4 {[%emt 0:00:22]} 69. Ra4 {[%emt 0:00:15]} Rc8 {[%emt 0:00:07]} 70. Rb4 {[%emt 0:00:57]} Rc7 {[%emt 0:00:02]} 71. Rb1 {[%emt 0:00:14]} c3 {[%emt 0:00:02]} 72. Rc1 {[%emt 0:00:11]} c2 {[%emt 0:00:04]} 73. Ke5 {[%emt 0:00:04]} b5 {[%emt 0:00:03]} 74. Kd4 {[%emt 0:00:18]} b4 {[%emt 0:00:02]} 75. Kd3 {[%emt 0:00:08]} b3 {[%emt 0:00:01]} 76. Kd2 {[%emt 0:00:23]} 0-1

[Event "FIDE Women World Rapid 2024"]
[Site "New York"]
[Date "2024.12.27"]
[Round "5.27"]
[White "Krush, Irina"]
[Black "Nurman, Alua"]
[Result "1/2-1/2"]
[ECO "E90"]
[WhiteElo "2378"]
[BlackElo "2330"]
[Annotator "ChessBase"]
[PlyCount "161"]
[EventDate "2024.12.14"]
[EventType "swiss"]
[EventCountry "USA"]
[SourceTitle "playchess.com"]
[Source "ChessBase"]
[SourceQuality "1"]
[TimeControl "900+10"]

1. d4 {[%emt 0:00:55]} Nf6 {[%emt 0:00:02]} 2. c4 {[%emt 0:00:02]} g6 {[%emt 0:00:03]} 3. Nc3 {[%emt 0:00:02]} Bg7 {[%emt 0:00:02]} 4. e4 {[%emt 0:00:03]} d6 {[%emt 0:00:01]} 5. h3 {[%emt 0:00:03]} O-O {[%emt 0:00:04]} 6. Be3 {[%emt 0:00:02]} c6 {[%emt 0:00:12]} 7. Nf3 {[%emt 0:00:36]} Na6 {[%emt 0:00:07]} 8. Be2 {[%emt 0:00:33]} e5 {[%emt 0:00:06]} 9. d5 {[%emt 0:00:16]} Nh5 {[%emt 0:01:38]} 10. O-O {[%emt 0:05:24]} Nf4 {[%emt 0:00:20]} 11. Re1 {[%emt 0:00:13]} c5 {[%emt 0:02:23]} 12. Bf1 {[%emt 0:00:07]} f5 {[%emt 0:01:35]} 13. exf5 {[%emt 0:01:41]} Rxf5 {[%emt 0:00:25]} 14. Ne4 {[%emt 0:00:21]} Rf8 {[%emt 0:00:16]} 15. a3 {[%emt 0:00:35]} Bf5 {[%emt 0:00:39]} 16. Ng3 {[%emt 0:01:52]} Bd7 {[%emt 0:00:15]} 17. Kh2 {[%emt 0:00:42]} b5 {[%emt 0:02:06]} 18. b3 {[%emt 0:00:32]} b4 {[%emt 0:00:13]} 19. a4 {[%emt 0:00:12]} Nc7 {[%emt 0:00:03]} 20. Ra2 {[%emt 0:00:55]} Ne8 {[%emt 0:00:39]} 21. Ne4 {[%emt 0:00:03]} h6 {[%emt 0:00:44]} 22. g3 {[%emt 0:00:15]} Nh5 {[%emt 0:00:08]} 23. Nh4 {[%emt 0:00:44]} Nhf6 {[%emt 0:00:31]} 24. Bd3 {[%emt 0:00:16]} Nxe4 {[%emt 0:00:04]} 25. Bxe4 {[%emt 0:00:02]} g5 {[%emt 0:00:04]} 26. Nf3 {[%emt 0:00:37]} Bf5 {[%emt 0:00:17]} 27. Bxf5 {[%emt 0:00:10]} Rxf5 {[%emt 0:00:01]} 28. Nd2 {[%emt 0:00:01]} Qd7 {[%emt 0:00:33]} 29. Ne4 {[%emt 0:00:06]} Nf6 {[%emt 0:00:29]} 30. Nxf6+ {[%emt 0:00:24]} Rxf6 {[%emt 0:00:03]} 31. Qg4 {[%emt 0:00:20]} Qf7 {[%emt 0:00:04]} 32. h4 {[%emt 0:00:15]} h5 {[%emt 0:00:42]} 33. Qe4 {[%emt 0:00:03]} g4 {[%emt 0:00:21]} 34. Kg2 {[%emt 0:00:16]} Rf8 {[%emt 0:00:04]} 35. Ree2 {[%emt 0:00:04]} Rf5 {[%emt 0:00:12]} 36. Kg1 {[%emt 0:00:10]} Rf3 {[%emt 0:00:37]} 37. Kg2 {[%emt 0:00:14]} Qe8 {[%emt 0:00:31]} 38. Kg1 {[%emt 0:00:15]} R8f5 {[%emt 0:00:03]} 39. Kg2 {[%emt 0:00:09]} Qf7 {[%emt 0:00:03]} 40. Kg1 {[%emt 0:00:15]} Qg6 {[%emt 0:00:37]} 41. Kg2 {[%emt 0:00:05]} Bh6 {[%emt 0:00:20]} 42. Rab2 {[%emt 0:01:00]} Bg7 {[%emt 0:00:35]} 43. Rbc2 {[%emt 0:00:25]} Qf7 {[%emt 0:00:05]} 44. Ra2 {[%emt 0:00:11]} Kh7 {[%emt 0:00:05]} 45. Rac2 {[%emt 0:00:07]} Qg6 {[%emt 0:01:08]} 46. Ra2 {[%emt 0:00:03]} Bh6 {[%emt 0:00:08]} 47. Rab2 {[%emt 0:00:14]} Bxe3 {[%emt 0:00:55]} 48. Rxe3 {[%emt 0:00:05]} Rxe3 {[%emt 0:00:01]} 49. Qxe3 {[%emt 0:00:09]} Rf3 {[%emt 0:00:01]} 50. Qc1 {[%emt 0:01:03]} a5 {[%emt 0:00:31]} 51. Kg1 {[%emt 0:00:08]} Qf5 {[%emt 0:00:03]} 52. Qd2 {[%emt 0:00:13]} e4 {[%emt 0:00:19]} 53. Qc2 {[%emt 0:00:13]} Rd3 {[%emt 0:00:21]} 54. Qe2 {[%emt 0:00:15]} Qf3 {[%emt 0:00:53]} 55. Rd2 {[%emt 0:00:10]} Rxb3 {[%emt 0:00:05]} 56. Qe1 {[%emt 0:00:11]} Rc3 {[%emt 0:00:18]} 57. Re2 {[%emt 0:00:09]} Rxc4 {[%emt 0:00:05]} 58. Re3 {[%emt 0:00:09]} Qf5 {[%emt 0:00:01]} 59. Qf1 {[%emt 0:00:13]} Rc2 {[%emt 0:00:03]} 60. Re2 {[%emt 0:00:09]} b3 {[%emt 0:00:17]} 61. Rxc2 {[%emt 0:00:08]} bxc2 {[%emt 0:00:00]} 62. Qc1 {[%emt 0:00:01]} Qxd5 {[%emt 0:00:12]} 63. Qxc2 {[%emt 0:00:02]} c4 {[%emt 0:00:36]} 64. Qc1 {[%emt 0:00:28]} Qf7 {[%emt 0:00:16]} 65. Qd2 {[%emt 0:00:13]} d5 {[%emt 0:00:47]} 66. Qxa5 {[%emt 0:00:02]} Qb7 {[%emt 0:00:15]} 67. Qc5 {[%emt 0:00:04]} e3 {[%emt 0:00:26]} 68. Qxe3 {[%emt 0:00:04]} Qb1+ {[%emt 0:00:01]} 69. Kh2 {[%emt 0:00:02]} Qe4 {[%emt 0:00:04]} 70. Qa7+ {[%emt 0:00:14]} Kg6 {[%emt 0:00:01]} 71. Qb6+ {[%emt 0:00:02]} Kf5 {[%emt 0:00:02]} 72. a5 {[%emt 0:00:08]} c3 {[%emt 0:00:01]} 73. Qc7 {[%emt 0:00:09]} c2 {[%emt 0:00:06]} 74. a6 {[%emt 0:00:17]} Qe2 {[%emt 0:00:40]} 75. Qf4+ {[%emt 0:00:11]} Kg6 {[%emt 0:00:01]} 76. Qg5+ {[%emt 0:00:30]} Kh7 {[%emt 0:00:01]} 77. Qxh5+ {[%emt 0:00:04]} Kg7 {[%emt 0:00:01]} 78. Qg5+ {[%emt 0:00:02]} Kh7 {[%emt 0:00:01]} 79. Qh5+ {[%emt 0:00:04]} Kg7 {[%emt 0:00:01]} 80. Qg5+ {[%emt 0:00:00]} Kh7 {[%emt 0:00:03]} 81. Qh5+ {[%emt 0:00:03]} 1/2-1/2